[Event "SRB-chT Women 1st League 2019"]
[Site "Subotica"]
[Date "2019.08.23"]
[Round "2"]
[White "Miladinovic, Lena"]
[Black "Benderac, Ana"]
[Result "0-1"]
[ECO "A84"]
[WhiteElo "2119"]
[BlackElo "2228"]
[Annotator "NA"]
[PlyCount "78"]
[EventDate "2019.08.23"]
[EventType "team-tourn"]
[EventCountry "SRB"]
[SourceTitle "playchess.com"]
[Source "ChessBase"]
[SourceQuality "1"]
[TimeControl "40/5400+30:1800+30"]

1. d4 {[%emt 0:00:30]} f5 {[%emt 0:00:30]} 2. Nf3 {[%emt 0:00:00]} Nf6 {[%emt 0:00:00]} 3. g3 {[%emt 0:00:00]} b6 {[%emt 0:05:00]} 4. Bg2 {[%emt 0:00:30]} Bb7 {[%emt 0:00:30]} 5. O-O {[%emt 0:01:30]} e6 {[%emt 0:01:30]} 6. c4 {[%emt 0:03:30]} Be7 {[%emt 0:03:30]} 7. Nc3 {[%emt 0:04:30]} O-O {[%emt 0:02:30]} 8. d5 {[%emt 0:10:30]} Qc8 {[%emt 0:15:30]} 9. a3 {[%emt 0:13:30]} a5 {[%emt 0:02:30]} 10. Bf4 {[%emt 0:05:30]} Na6 {[%emt 0:03:30]} 11. Rc1 {[%emt 0:06:30]} Nc5 {[%emt 0:11:30]} 12. Nb5 {[%emt 0:15:30]} d6 {[%emt 0:16:30]} 13. b4 {[%emt 0:05:30]} axb4 {[%emt 0:00:30]} 14. axb4 {[%emt 0:00:30]} Na6 {[%emt 0:00:30]} 15. Ng5 {[%emt 0:05:30]} e5 {[%emt 0:03:30]} 16. Bd2 {[%emt 0:00:30]} c6 {[%emt 0:03:30]} 17. dxc6 {[%emt 0:03:30]} Bxc6 {[%emt 0:00:00]} 18. Qb3 {[%emt 0:02:37]} Bxg2 {[%emt 0:05:00]} 19. Kxg2 {[%emt 0:00:06]} h6 {[%emt 0:08:09]} 20. c5+ {[%emt 0:03:21]} d5 {[%emt 0:01:10]} 21. Nf3 {[%emt 0:03:41]} bxc5 {[%emt 0:03:07]} 22. Nxe5 {[%emt 0:04:44]} c4 {[%emt 0:00:16]} 23. Qb1 {[%emt 0:02:57]} Ne4 {[%emt 0:05:54]} 24. Rfd1 {[%emt 0:04:55]} Qb7 {[%emt 0:05:10]} 25. Ng6 {[%emt 0:01:17]} Rfb8 {[%emt 0:01:52]} 26. Nd4 {[%emt 0:00:23]} Bf8 {[%emt 0:00:30]} 27. Bf4 {[%emt 0:00:49]} Bd6 {[%emt 0:00:48]} 28. Nxf5 {[%emt 0:00:57]} Bxf4 {[%emt 0:00:22]} 29. Nxf4 {[%emt 0:00:23]} Nxb4 {[%emt 0:00:11]} 30. f3 {[%emt 0:00:43]} Nf6 {[%emt 0:00:18]} 31. Ne6 {[%emt 0:00:32]} Ne8 {[%emt 0:00:00]} 32. Qb2 {[%emt 0:00:29]} Ra2 {[%emt 0:00:00]} 33. Qe5 {[%emt 0:00:05]} Nd3 {[%emt 0:00:05]} 34. Nxh6+ {[%emt 0:00:55]} gxh6 {[%emt 0:00:43]} 35. Qf5 {[%emt 0:00:29]} Rxe2+ {[%emt 0:00:36]} 36. Kh1 {[%emt 0:00:31]} Qf7 {[%emt 0:01:07]} 37. Qg4+ {[%emt 0:00:10]} Ng7 {[%emt 0:00:56]} 38. Rxd3 {[%emt 0:00:38]} cxd3 {[%emt 0:00:37]} 39. Rc7 {[%emt 0:00:07]} Rb1+ 0-1

[Event "SRB-chT Women 1st League 2019"]
[Site "Subotica"]
[Date "2019.08.23"]
[Round "2"]
[White "Kezele, Tamara"]
[Black "Zarkovic, Mila"]
[Result "0-1"]
[ECO "B50"]
[WhiteElo "1982"]
[BlackElo "2141"]
[Annotator "NA"]
[PlyCount "64"]
[EventDate "2019.08.23"]
[EventType "team-tourn"]
[EventCountry "SRB"]
[SourceTitle "playchess.com"]
[Source "ChessBase"]
[SourceQuality "1"]
[TimeControl "40/5400+30:1800+30"]

1. e4 c5 2. Nf3 d6 3. c3 Nf6 4. Bd3 Bg4 5. Qb3 Qb6 6. Qxb6 axb6 7. e5 Bxf3 8. exf6 Bc6 9. fxe7 Bxe7 10. O-O O-O 11. Re1 Bf6 12. Na3 Nd7 13. Bf5 b5 14. Nc2 g6 15. Bxd7 Bxd7 16. d3 Bf5 17. Rd1 Be6 18. Na3 b4 19. cxb4 Rxa3 20. Bh6 Bxb2 21. Bxf8 Bxa1 22. Bxd6 Rxa2 23. Bxc5 Bc3 24. d4 Ra1 25. Rxa1 Bxa1 26. f3 Bc3 27. b5 Bc4 28. b6 f5 29. Kf2 Kf7 30. Ke3 Ke6 31. g4 fxg4 32. fxg4 Kd5 0-1

[Event "SRB-chT Women 1st League 2019"]
[Site "Subotica"]
[Date "2019.08.24"]
[Round "3"]
[White "Atalik, Ekaterina"]
[Black "Voyska, Margarita"]
[Result "1-0"]
[ECO "D04"]
[WhiteElo "2456"]
[BlackElo "2214"]
[Annotator "ChessBase"]
[PlyCount "99"]
[EventDate "2019.08.23"]
[EventType "team-tourn"]
[EventCountry "SRB"]
[SourceTitle "playchess.com"]
[Source "ChessBase"]
[SourceQuality "1"]
[TimeControl "40/5400+30:1800+30"]

1. Nf3 {[%emt 0:00:30]} Nf6 {[%emt 0:00:30]} 2. e3 {[%emt 0:00:30]} g6 {[%emt 0:01:30]} 3. b3 {[%emt 0:00:30]} Bg7 {[%emt 0:00:30]} 4. Bb2 {[%emt 0:00:30]} c5 {[%emt 0:01:30]} 5. d4 {[%emt 0:00:30]} O-O {[%emt 0:00:30]} 6. Nbd2 {[%emt 0:00:30]} cxd4 {[%emt 0:03:30]} 7. exd4 {[%emt 0:01:30]} d5 {[%emt 0:01:30]} 8. Bd3 {[%emt 0:00:30]} Nc6 {[%emt 0:00:00]} 9. a3 {[%emt 0:01:30]} Qb6 {[%emt 0:07:00]} 10. O-O {[%emt 0:05:30]} Nh5 {[%emt 0:11:30]} 11. c3 {[%emt 0:04:30]} Nf4 {[%emt 0:04:30]} 12. Bc2 {[%emt 0:00:30]} Bg4 {[%emt 0:11:30]} 13. h3 {[%emt 0:04:30]} Bd7 {[%emt 0:00:00]} 14. Re1 {[%emt 0:03:30]} Rfe8 {[%emt 0:06:00]} 15. Ne5 {[%emt 0:05:30]} Nxe5 {[%emt 0:04:30]} 16. dxe5 {[%emt 0:00:30]} Bh6 {[%emt 0:03:30]} 17. Nf3 {[%emt 0:06:30]} Rac8 {[%emt 0:05:30]} 18. Nd4 {[%emt 0:06:30]} Ne6 {[%emt 0:01:30]} 19. Nxe6 {[%emt 0:08:30]} Bxe6 {[%emt 0:00:30]} 20. Bd3 {[%emt 0:02:30]} Red8 {[%emt 0:10:30]} 21. h4 {[%emt 0:03:30]} Rc6 {[%emt 0:08:38]} 22. a4 {[%emt 0:05:30]} a6 {[%emt 0:05:29]} 23. a5 {[%emt 0:07:30]} Qc7 {[%emt 0:00:30]} 24. Qe2 {[%emt 0:01:30]} Rxc3 {[%emt 0:02:39]} 25. Bxc3 {[%emt 0:00:30]} Qxc3 {[%emt 0:00:02]} 26. g3 {[%emt 0:02:30]} d4 {[%emt 0:01:46]} 27. f4 {[%emt 0:03:30]} Bg4 {[%emt 0:01:49]} 28. Qxg4 {[%emt 0:05:25]} Qxd3 {[%emt 0:00:02]} 29. Kh2 {[%emt 0:02:12]} e6 {[%emt 0:01:31]} 30. Qd1 {[%emt 0:00:34]} Qc3 {[%emt 0:01:37]} 31. Qc1 {[%emt 0:05:18]} Qf3 {[%emt 0:01:11]} 32. Qd2 {[%emt 0:02:23]} Bf8 {[%emt 0:01:22]} 33. Rab1 {[%emt 0:04:53]} Rc8 {[%emt 0:03:04]} 34. Qg2 {[%emt 0:01:56]} Qxg2+ {[%emt 0:00:40]} 35. Kxg2 {[%emt 0:00:05]} d3 {[%emt 0:00:22]} 36. Red1 {[%emt 0:00:23]} Rc2+ {[%emt 0:00:35]} 37. Kf3 {[%emt 0:00:18]} d2 {[%emt 0:00:37]} 38. b4 {[%emt 0:00:44]} Rc3+ {[%emt 0:00:30]} 39. Kg2 {[%emt 0:00:25]} Rc2 {[%emt 0:00:21]} 40. Rb3 {[%emt 0:00:00]} f6 {[%emt 0:00:00]} 41. exf6 {[%emt 0:04:24]} Kf7 {[%emt 0:02:45]} 42. Kf3 {[%emt 0:01:30]} Kxf6 {[%emt 0:00:30]} 43. Ke2 {[%emt 0:02:30]} Rc4 {[%emt 0:05:30]} 44. Rxd2 {[%emt 0:00:30]} Bxb4 {[%emt 0:00:30]} 45. Ra2 {[%emt 0:03:30]} Bd6 {[%emt 0:03:30]} 46. Rxb7 {[%emt 0:02:30]} Bc7 {[%emt 0:00:00]} 47. Kd3 {[%emt 0:08:33]} Rc6 {[%emt 0:00:00]} 48. Rc2 {[%emt 0:04:47]} Rd6+ {[%emt 0:02:30]} 49. Ke4 {[%emt 0:00:14]} Bxa5 {[%emt 0:00:00]} 50. g4 {[%emt 0:00:42]} 1-0

[Event "SRB-chT Women 1st League 2019"]
[Site "Subotica"]
[Date "2019.08.24"]
[Round "3"]
[White "Gaponenko, Inna"]
[Black "Marcetic, Marija"]
[Result "1-0"]
[ECO "B56"]
[WhiteElo "2446"]
[BlackElo "2133"]
[Annotator "NA"]
[PlyCount "47"]
[EventDate "2019.08.23"]
[EventType "team-tourn"]
[EventCountry "SRB"]
[SourceTitle "playchess.com"]
[Source "ChessBase"]
[SourceQuality "1"]
[TimeControl "40/5400+30:1800+30"]

1. e4 {[%emt 0:00:30]} c5 {[%emt 0:00:30]} 2. Nf3 {[%emt 0:00:30]} Nc6 {[%emt 0:00:30]} 3. Nc3 {[%emt 0:00:30]} d6 {[%emt 0:00:30]} 4. d4 {[%emt 0:00:30]} cxd4 {[%emt 0:00:30]} 5. Nxd4 {[%emt 0:00:30]} Nf6 {[%emt 0:00:30]} 6. f3 {[%emt 0:09:30]} e5 {[%emt 0:09:30]} 7. Nb3 {[%emt 0:00:30]} Be6 {[%emt 0:00:30]} 8. Nd5 {[%emt 0:02:30]} Bxd5 {[%emt 0:10:30]} 9. exd5 {[%emt 0:00:00]} Nb8 {[%emt 0:01:30]} 10. Be3 {[%emt 0:11:00]} Nbd7 {[%emt 0:01:30]} 11. Be2 {[%emt 0:06:30]} Be7 {[%emt 0:00:30]} 12. O-O {[%emt 0:00:00]} O-O {[%emt 0:00:30]} 13. c4 {[%emt 0:01:00]} Nh5 {[%emt 0:03:30]} 14. Qd2 {[%emt 0:00:30]} h6 {[%emt 0:04:30]} 15. g3 {[%emt 0:18:30]} b6 {[%emt 0:17:30]} 16. f4 {[%emt 0:17:30]} Nhf6 {[%emt 0:02:30]} 17. fxe5 {[%emt 0:01:30]} Nxe5 {[%emt 0:00:00]} 18. Nd4 {[%emt 0:00:30]} Nh7 {[%emt 0:20:00]} 19. h4 {[%emt 0:09:12]} Bf6 {[%emt 0:03:30]} 20. Nf5 {[%emt 0:01:30]} Rc8 {[%emt 0:00:30]} 21. Rac1 {[%emt 0:00:39]} Re8 {[%emt 0:04:23]} 22. b3 {[%emt 0:02:35]} Nf8 {[%emt 0:02:29]} 23. Nxd6 {[%emt 0:01:18]} Nfd7 {[%emt 0:01:31]} 24. Rf2 {[%emt 0:00:00]} 1-0

[Event "SRB-chT Women 1st League 2019"]
[Site "Subotica"]
[Date "2019.08.24"]
[Round "3"]
[White "Stojanovic, Andjelija"]
[Black "Zivkovic, Vesna"]
[Result "1-0"]
[ECO "A46"]
[WhiteElo "2350"]
[BlackElo "2016"]
[Annotator "NA"]
[PlyCount "79"]
[EventDate "2019.08.23"]
[EventType "team-tourn"]
[EventCountry "SRB"]
[SourceTitle "playchess.com"]
[Source "ChessBase"]
[SourceQuality "1"]
[TimeControl "40/5400+30:1800+30"]

1. d4 {[%emt 0:00:30]} Nf6 {[%emt 0:00:30]} 2. Bf4 {[%emt 0:05:30]} d6 {[%emt 0:03:30]} 3. Nf3 {[%emt 0:00:30]} Bf5 {[%emt 0:01:30]} 4. e3 {[%emt 0:07:30]} e6 {[%emt 0:00:30]} 5. h3 {[%emt 0:00:30]} h6 {[%emt 0:00:30]} 6. Bd3 {[%emt 0:02:30]} Bxd3 {[%emt 0:03:30]} 7. Qxd3 {[%emt 0:01:30]} c6 {[%emt 0:03:30]} 8. c4 {[%emt 0:12:30]} Nbd7 {[%emt 0:04:30]} 9. Nc3 {[%emt 0:04:30]} d5 {[%emt 0:06:30]} 10. c5 {[%emt 0:07:30]} Be7 {[%emt 0:00:30]} 11. b4 {[%emt 0:07:30]} O-O {[%emt 0:13:30]} 12. O-O {[%emt 0:04:30]} b6 {[%emt 0:03:30]} 13. a4 {[%emt 0:11:30]} a5 {[%emt 0:02:30]} 14. b5 {[%emt 0:01:30]} Qc8 {[%emt 0:03:30]} 15. cxb6 {[%emt 0:02:30]} c5 {[%emt 0:05:30]} 16. dxc5 {[%emt 0:04:30]} Bxc5 {[%emt 0:00:30]} 17. Rac1 {[%emt 0:04:03]} Qb7 {[%emt 0:00:30]} 18. Ne2 {[%emt 0:03:18]} Bxb6 {[%emt 0:01:30]} 19. Ned4 {[%emt 0:01:03]} Rfe8 {[%emt 0:00:30]} 20. Nc6 {[%emt 0:00:33]} Ne4 {[%emt 0:04:30]} 21. Nfe5 {[%emt 0:02:12]} Ndc5 {[%emt 0:01:30]} 22. Qa3 {[%emt 0:00:07]} f6 {[%emt 0:02:30]} 23. Nd3 {[%emt 0:03:05]} Nxd3 {[%emt 0:03:30]} 24. Qxd3 {[%emt 0:00:30]} Qf7 {[%emt 0:00:30]} 25. Bh2 {[%emt 0:00:30]} Qh5 {[%emt 0:05:30]} 26. Rc2 {[%emt 0:01:06]} Nc5 {[%emt 0:07:30]} 27. Qa3 {[%emt 0:01:28]} Ne4 {[%emt 0:05:26]} 28. Rfc1 {[%emt 0:01:37]} Kh8 {[%emt 0:01:34]} 29. Qd3 {[%emt 0:00:57]} Qh4 {[%emt 0:02:29]} 30. Nd4 {[%emt 0:01:45]} Bxd4 {[%emt 0:03:03]} 31. exd4 {[%emt 0:01:12]} e5 {[%emt 0:00:57]} 32. dxe5 {[%emt 0:00:35]} fxe5 {[%emt 0:00:21]} 33. Qxd5 {[%emt 0:02:26]} Rad8 {[%emt 0:01:26]} 34. g3 {[%emt 0:02:51]} Rxd5 {[%emt 0:01:51]} 35. gxh4 {[%emt 0:00:01]} Re6 {[%emt 0:00:32]} 36. Rc6 {[%emt 0:00:26]} Rf6 {[%emt 0:03:08]} 37. b6 {[%emt 0:01:28]} Rxf2 {[%emt 0:01:15]} 38. b7 {[%emt 0:00:08]} Rdd2 {[%emt 0:00:14]} 39. b8=Q+ {[%emt 0:00:11]} Kh7 {[%emt 0:00:19]} 40. Qxe5 {[%emt 0:00:00]} 1-0

[Event "SRB-chT Women 1st League 2019"]
[Site "Subotica"]
[Date "2019.08.24"]
[Round "3"]
[White "Belenkaya, Dina"]
[Black "Bulmaga, Irina"]
[Result "1/2-1/2"]
[ECO "C00"]
[WhiteElo "2298"]
[BlackElo "2444"]
[Annotator "NA"]
[PlyCount "134"]
[EventDate "2019.08.23"]
[EventType "team-tourn"]
[EventCountry "SRB"]
[SourceTitle "playchess.com"]
[Source "ChessBase"]
[SourceQuality "1"]
[TimeControl "40/5400+30:1800+30"]

1. e4 {[%emt 0:00:30]} c5 {[%emt 0:00:30]} 2. Nf3 {[%emt 0:00:00]} e6 {[%emt 0:00:00]} 3. g3 {[%emt 0:00:00]} Nc6 {[%emt 0:00:00]} 4. Bg2 {[%emt 0:00:30]} Nf6 {[%emt 0:00:30]} 5. d3 {[%emt 0:02:30]} d5 {[%emt 0:00:30]} 6. Nbd2 {[%emt 0:02:30]} Be7 {[%emt 0:01:30]} 7. O-O {[%emt 0:00:30]} Qc7 {[%emt 0:01:30]} 8. Re1 {[%emt 0:02:30]} b6 {[%emt 0:01:30]} 9. exd5 {[%emt 0:07:30]} Nxd5 {[%emt 0:02:30]} 10. Nc4 {[%emt 0:11:30]} Bb7 {[%emt 0:02:30]} 11. a4 {[%emt 0:01:30]} Rd8 {[%emt 0:05:30]} 12. Ng5 {[%emt 0:05:30]} O-O {[%emt 0:18:30]} 13. Bd2 {[%emt 0:11:30]} h6 {[%emt 0:10:30]} 14. Ne4 {[%emt 0:01:30]} Rfe8 {[%emt 0:07:30]} 15. Nc3 {[%emt 0:05:30]} Nxc3 {[%emt 0:08:30]} 16. bxc3 {[%emt 0:01:30]} Bf6 {[%emt 0:03:30]} 17. Qg4 {[%emt 0:02:30]} Ba6 {[%emt 0:07:30]} 18. Bf4 {[%emt 0:16:30]} e5 {[%emt 0:03:30]} 19. Bxh6 {[%emt 0:02:30]} Bxc4 {[%emt 0:01:30]} 20. dxc4 {[%emt 0:01:30]} Qc8 {[%emt 0:04:01]} 21. Qe4 {[%emt 0:04:43]} Na5 {[%emt 0:02:58]} 22. Be3 {[%emt 0:00:38]} g6 {[%emt 0:02:05]} 23. Rad1 {[%emt 0:03:50]} Rxd1 {[%emt 0:03:28]} 24. Rxd1 {[%emt 0:00:02]} Rd8 {[%emt 0:00:35]} 25. Rd5 {[%emt 0:01:06]} Rxd5 {[%emt 0:01:36]} 26. cxd5 {[%emt 0:01:40]} Nb7 {[%emt 0:00:57]} 27. f4 {[%emt 0:07:31]} Nd6 {[%emt 0:00:30]} 28. Qd3 {[%emt 0:00:22]} Qe8 {[%emt 0:04:29]} 29. fxe5 {[%emt 0:00:46]} Bxe5 {[%emt 0:00:27]} 30. a5 {[%emt 0:03:13]} c4 {[%emt 0:02:37]} 31. Qd2 {[%emt 0:00:39]} bxa5 {[%emt 0:01:39]} 32. Bxa7 {[%emt 0:00:20]} Nb5 {[%emt 0:01:48]} 33. Bd4 {[%emt 0:02:45]} Bxd4+ {[%emt 0:00:45]} 34. cxd4 {[%emt 0:00:02]} c3 {[%emt 0:00:48]} 35. Qd3 {[%emt 0:00:40]} a4 {[%emt 0:00:26]} 36. d6 {[%emt 0:00:20]} Qe1+ {[%emt 0:00:32]} 37. Qf1 {[%emt 0:00:55]} Qe3+ {[%emt 0:00:45]} 38. Qf2 {[%emt 0:00:38]} Qxf2+ {[%emt 0:00:20]} 39. Kxf2 {[%emt 0:00:01]} Nxd6 {[%emt 0:00:13]} 40. Bd5 {[%emt 0:00:00]} Nf5 {[%emt 0:00:00]} 41. Ke2 {[%emt 0:03:19]} Nxd4+ {[%emt 0:12:11]} 42. Kd3 {[%emt 0:00:00]} Nb5 {[%emt 0:01:15]} 43. Kc4 {[%emt 0:02:00]} Nc7 {[%emt 0:02:26]} 44. Bc6 {[%emt 0:00:30]} a3 {[%emt 0:00:23]} 45. Kxc3 {[%emt 0:02:30]} Kf8 {[%emt 0:01:18]} 46. Kb3 {[%emt 0:01:30]} Ke7 {[%emt 0:00:22]} 47. Kxa3 {[%emt 0:01:30]} Kd6 {[%emt 0:00:05]} 48. Bg2 {[%emt 0:01:30]} g5 {[%emt 0:00:22]} 49. Kb4 {[%emt 0:00:30]} f5 {[%emt 0:03:25]} 50. Kc4 {[%emt 0:01:30]} Ke5 {[%emt 0:02:10]} 51. Bc6 {[%emt 0:02:30]} Ne6 {[%emt 0:01:38]} 52. c3 {[%emt 0:01:49]} f4 {[%emt 0:01:57]} 53. Bf3 {[%emt 0:05:38]} Ng7 {[%emt 0:02:04]} 54. Kd3 {[%emt 0:02:13]} Nf5 {[%emt 0:00:52]} 55. g4 {[%emt 0:00:53]} Ng7 {[%emt 0:01:52]} 56. Be4 {[%emt 0:03:01]} Ne6 {[%emt 0:00:41]} 57. Ba8 {[%emt 0:02:00]} Nc5+ {[%emt 0:00:24]} 58. Ke2 {[%emt 0:00:39]} Na4 {[%emt 0:00:22]} 59. Kd2 {[%emt 0:01:28]} Nc5 {[%emt 0:00:07]} 60. Bc6 {[%emt 0:00:33]} Kd6 {[%emt 0:00:14]} 61. Bh1 {[%emt 0:00:27]} Ke5 {[%emt 0:00:13]} 62. Ke2 {[%emt 0:00:17]} Kd6 {[%emt 0:00:21]} 63. Ba8 {[%emt 0:00:48]} Ke5 {[%emt 0:00:11]} 64. Bc6 {[%emt 0:01:36]} Kd6 {[%emt 0:00:07]} 65. Bf3 {[%emt 0:00:36]} Ke5 {[%emt 0:00:41]} 66. Ba8 {[%emt 0:02:28]} Kd6 {[%emt 0:00:11]} 67. Bf3 {[%emt 0:00:19]} Ke5 {[%emt 0:00:33]} 1/2-1/2

[Event "SRB-chT Women 1st League 2019"]
[Site "Subotica"]
[Date "2019.08.24"]
[Round "3"]
[White "Eric, Jovana"]
[Black "Bojicic, Andjela"]
[Result "1/2-1/2"]
[ECO "B52"]
[WhiteElo "2270"]
[BlackElo "2016"]
[Annotator "NA"]
[PlyCount "114"]
[EventDate "2019.08.23"]
[EventType "team-tourn"]
[EventCountry "SRB"]
[SourceTitle "playchess.com"]
[Source "ChessBase"]
[SourceQuality "1"]
[TimeControl "40/5400+30:1800+30"]

1. e4 {[%emt 0:00:30]} c5 {[%emt 0:00:30]} 2. Nf3 {[%emt 0:00:00]} d6 {[%emt 0:00:00]} 3. Bb5+ {[%emt 0:00:00]} Bd7 {[%emt 0:00:00]} 4. Bxd7+ {[%emt 0:00:30]} Qxd7 {[%emt 0:00:00]} 5. O-O {[%emt 0:00:30]} Nc6 {[%emt 0:01:00]} 6. c3 {[%emt 0:00:30]} Nf6 {[%emt 0:01:30]} 7. Re1 {[%emt 0:00:30]} e6 {[%emt 0:00:00]} 8. d4 {[%emt 0:00:30]} cxd4 {[%emt 0:01:00]} 9. cxd4 {[%emt 0:00:00]} d5 {[%emt 0:00:30]} 10. e5 {[%emt 0:00:00]} Ne4 {[%emt 0:00:30]} 11. Nbd2 {[%emt 0:01:30]} Nxd2 {[%emt 0:00:30]} 12. Bxd2 {[%emt 0:00:00]} Be7 {[%emt 0:00:30]} 13. Rc1 {[%emt 0:01:00]} O-O {[%emt 0:01:30]} 14. Rc3 {[%emt 0:02:30]} Rac8 {[%emt 0:08:30]} 15. a3 {[%emt 0:01:30]} f6 {[%emt 0:06:30]} 16. exf6 {[%emt 0:03:30]} Bxf6 {[%emt 0:02:30]} 17. Bf4 {[%emt 0:05:30]} Qf7 {[%emt 0:09:30]} 18. Bg3 {[%emt 0:08:30]} Ne7 {[%emt 0:07:30]} 19. Rb3 {[%emt 0:16:30]} Nf5 {[%emt 0:09:30]} 20. Ne5 {[%emt 0:04:30]} Bxe5 {[%emt 0:07:30]} 21. Bxe5 {[%emt 0:00:30]} Rc4 {[%emt 0:00:30]} 22. Rf3 {[%emt 0:02:30]} Qe7 {[%emt 0:02:30]} 23. Qd2 {[%emt 0:04:30]} Rfc8 {[%emt 0:03:30]} 24. Qf4 {[%emt 0:04:30]} Nh4 {[%emt 0:07:30]} 25. Rfe3 {[%emt 0:04:30]} Nf5 {[%emt 0:04:30]} 26. Rh3 {[%emt 0:02:30]} Rf8 {[%emt 0:04:30]} 27. Qd2 {[%emt 0:02:30]} Rfc8 {[%emt 0:01:30]} 28. Rb3 {[%emt 0:07:30]} Rc2 {[%emt 0:00:30]} 29. Qf4 {[%emt 0:00:30]} b6 {[%emt 0:00:43]} 30. h3 {[%emt 0:00:00]} Qh4 {[%emt 0:02:57]} 31. g4 {[%emt 0:01:00]} Nh6 {[%emt 0:03:37]} 32. Bd6 {[%emt 0:00:30]} Nf7 {[%emt 0:02:09]} 33. Rf3 {[%emt 0:01:30]} Qf6 {[%emt 0:02:58]} 34. Qe3 {[%emt 0:00:30]} Qg6 {[%emt 0:01:20]} 35. Be7 {[%emt 0:06:30]} Re8 {[%emt 0:01:24]} 36. Qf4 {[%emt 0:09:11]} h6 {[%emt 0:00:11]} 37. Bb4 {[%emt 0:02:41]} Ng5 {[%emt 0:00:55]} 38. Rfe3 {[%emt 0:02:02]} Ne4 {[%emt 0:02:48]} 39. R3e2 {[%emt 0:00:45]} Rec8 {[%emt 0:02:06]} 40. Kg2 {[%emt 0:00:00]} Qf7 {[%emt 0:00:00]} 41. Qxf7+ {[%emt 0:08:21]} Kxf7 {[%emt 0:01:22]} 42. f3 {[%emt 0:00:00]} Nf6 {[%emt 0:02:30]} 43. Kg3 {[%emt 0:03:00]} Rxe2 {[%emt 0:02:30]} 44. Rxe2 {[%emt 0:00:00]} Rc4 {[%emt 0:02:30]} 45. Bc3 {[%emt 0:01:00]} a5 {[%emt 0:01:30]} 46. h4 {[%emt 0:01:30]} Nd7 {[%emt 0:08:19]} 47. g5 {[%emt 0:02:30]} h5 {[%emt 0:01:04]} 48. Re3 {[%emt 0:02:30]} a4 {[%emt 0:03:21]} 49. Re1 {[%emt 0:04:38]} g6 {[%emt 0:04:14]} 50. Kf2 {[%emt 0:02:23]} Nb8 {[%emt 0:00:28]} 51. Ke3 {[%emt 0:02:25]} Nc6 {[%emt 0:00:51]} 52. Kd3 {[%emt 0:01:10]} Ne7 {[%emt 0:02:01]} 53. Rh1 {[%emt 0:00:54]} Nf5 {[%emt 0:00:37]} 54. f4 {[%emt 0:02:45]} Ke8 {[%emt 0:01:04]} 55. Rh2 {[%emt 0:00:19]} Kd7 {[%emt 0:00:31]} 56. Rh1 {[%emt 0:00:17]} Kc6 {[%emt 0:02:29]} 57. Rh2 {[%emt 0:00:57]} Kd7 {[%emt 0:00:25]} 1/2-1/2

[Event "SRB-chT Women 1st League 2019"]
[Site "Subotica"]
[Date "2019.08.24"]
[Round "3"]
[White "Belic, Jordanka"]
[Black "Injac, Teodora"]
[Result "0-1"]
[ECO "B53"]
[WhiteElo "2259"]
[BlackElo "2223"]
[Annotator "NA"]
[PlyCount "120"]
[EventDate "2019.08.23"]
[EventType "team-tourn"]
[EventCountry "SRB"]
[SourceTitle "playchess.com"]
[Source "ChessBase"]
[SourceQuality "1"]
[TimeControl "40/5400+30:1800+30"]

1. e4 {[%emt 1:30:30]} c5 {[%emt 1:30:30]} 2. Nf3 {[%emt 0:00:30]} d6 {[%emt 0:00:30]} 3. d4 {[%emt 0:00:30]} cxd4 {[%emt 0:00:30]} 4. Qxd4 {[%emt 0:00:30]} Nc6 {[%emt 0:00:30]} 5. Bb5 {[%emt 0:00:30]} Bd7 {[%emt 0:00:30]} 6. Bxc6 {[%emt 0:00:30]} Bxc6 {[%emt 0:00:30]} 7. Nc3 {[%emt 0:00:30]} Nf6 {[%emt 0:00:30]} 8. Bg5 {[%emt 0:00:30]} e6 {[%emt 0:00:30]} 9. O-O-O {[%emt 0:00:30]} Be7 {[%emt 0:00:30]} 10. Rhe1 {[%emt 0:00:30]} O-O {[%emt 0:00:30]} 11. Qd2 {[%emt 0:00:30]} Qa5 {[%emt 0:00:30]} 12. Nd4 {[%emt 0:00:30]} Rfc8 {[%emt 0:00:30]} 13. f3 {[%emt 0:00:30]} Be8 {[%emt 0:00:30]} 14. Nb3 {[%emt 0:00:30]} Qc7 {[%emt 0:00:30]} 15. Bf4 {[%emt 0:00:30]} Rd8 {[%emt 0:00:30]} 16. g4 {[%emt 0:00:30]} b5 {[%emt 0:00:30]} 17. h4 {[%emt 0:00:30]} b4 {[%emt 0:00:30]} 18. Ne2 {[%emt 0:00:30]} a5 {[%emt 0:00:30]} 19. Kb1 {[%emt 0:00:30]} a4 {[%emt 0:00:30]} 20. Nbc1 {[%emt 0:00:30]} e5 {[%emt 0:00:30]} 21. g5 {[%emt 0:00:30]} Nd7 {[%emt 0:00:30]} 22. Be3 {[%emt 0:00:30]} Nb6 {[%emt 0:00:30]} 23. Bxb6 {[%emt 0:00:30]} Qxb6 {[%emt 0:00:30]} 24. Ng3 {[%emt 0:00:30]} d5 {[%emt 0:00:30]} 25. Nf5 {[%emt 0:00:30]} Bf8 {[%emt 0:00:30]} 26. exd5 {[%emt 0:00:30]} b3 {[%emt 0:00:30]} 27. Rxe5 {[%emt 0:00:30]} f6 {[%emt 0:00:30]} 28. Rxe8 {[%emt 0:00:30]} Rxe8 {[%emt 0:00:30]} 29. cxb3 {[%emt 0:00:30]} axb3 {[%emt 0:00:30]} 30. Nxb3 {[%emt 0:00:30]} Qa6 {[%emt 0:00:30]} 31. Nc1 {[%emt 0:00:30]} Re5 {[%emt 0:00:30]} 32. Ne3 {[%emt 0:00:30]} fxg5 {[%emt 0:00:30]} 33. Ng4 {[%emt 0:00:30]} Rf5 {[%emt 0:00:30]} 34. hxg5 {[%emt 0:00:30]} Qg6 {[%emt 0:00:30]} 35. Qd3 {[%emt 0:00:30]} Rxg5 {[%emt 0:00:30]} 36. Qxg6 {[%emt 0:00:30]} Rxg6 {[%emt 0:00:30]} 37. Ne2 {[%emt 0:00:30]} Rd8 {[%emt 0:00:30]} 38. Nf4 {[%emt 0:00:30]} Rg5 {[%emt 0:00:30]} 39. Ne3 {[%emt 0:00:30]} Re5 {[%emt 0:00:30]} 40. Ne6 {[%emt 0:00:30]} Rd6 {[%emt 0:00:30]} 41. Nc4 {[%emt 0:30:30]} Rexe6 {[%emt 0:30:30]} 42. Nxd6 {[%emt 0:00:30]} Rxd6 {[%emt 0:00:30]} 43. Kc2 {[%emt 0:00:30]} h5 {[%emt 0:00:30]} 44. b4 {[%emt 0:00:30]} h4 {[%emt 0:00:30]} 45. a4 {[%emt 0:00:30]} Kf7 {[%emt 0:00:30]} 46. b5 {[%emt 0:00:30]} h3 {[%emt 0:00:30]} 47. a5 {[%emt 0:00:30]} h2 {[%emt 0:00:30]} 48. b6 {[%emt 0:00:30]} Rxd5 {[%emt 0:00:30]} 49. Rxd5 {[%emt 0:00:30]} h1=Q {[%emt 0:00:30]} 50. b7 {[%emt 0:00:30]} Qh2+ {[%emt 0:00:30]} 51. Kb3 {[%emt 0:00:30]} Bd6 {[%emt 0:00:30]} 52. a6 {[%emt 0:00:30]} Bb8 {[%emt 0:00:30]} 53. Rd7+ {[%emt 0:00:30]} Kf6 {[%emt 0:00:30]} 54. Rd8 {[%emt 0:00:30]} Qc7 {[%emt 0:00:30]} 55. Rc8 {[%emt 0:00:30]} Qb6+ {[%emt 0:00:30]} 56. Kc2 {[%emt 0:00:30]} Ba7 {[%emt 0:00:30]} 57. Ra8 {[%emt 0:00:30]} Qxa6 {[%emt 0:00:30]} 58. b8=Q {[%emt 0:00:30]} Qe2+ {[%emt 0:00:30]} 59. Kb1 {[%emt 0:00:30]} Bxb8 {[%emt 0:00:30]} 60. Rxb8 {[%emt 0:00:30]} Ke5 {[%emt 0:00:30]} 0-1